[Event "*** Titled Tuesday Blitz"]
[Site "Chess.com"]
[Date "2020.05.26"]
[Round "5"]
[White "albi1999"]
[Black "Grandelicious"]
[Result "0-1"]
[WhiteElo "2609"]
[BlackElo "2793"]
[TimeControl "180+1"]
[EndTime "10:56:16 PDT"]
[Termination "Grandelicious won by resignation"]

1. d4 {[%clk 0:03:00.9]} 1... d5 {[%clk 0:02:57.6]} 2. Nf3 {[%clk 0:02:59.8]}
2... e6 {[%clk 0:02:54.5]} 3. c4 {[%clk 0:03:00.1]} 3... a6 {[%clk 0:02:54.5]}
4. Bg5 {[%clk 0:02:58.4]} 4... Be7 {[%clk 0:02:53.7]} 5. Bxe7 {[%clk 0:02:58.4]}
5... Qxe7 {[%clk 0:02:54.6]} 6. Nbd2 {[%clk 0:02:58.8]} 6... Nf6 {[%clk
0:02:55.2]} 7. g3 {[%clk 0:02:58.9]} 7... O-O {[%clk 0:02:55.7]} 8. Bg2 {[%clk
0:02:59.5]} 8... b6 {[%clk 0:02:56.4]} 9. O-O {[%clk 0:02:54.4]} 9... Bb7 {[%clk
0:02:55.6]} 10. cxd5 {[%clk 0:02:53]} 10... exd5 {[%clk 0:02:54.1]} 11. Rc1
{[%clk 0:02:51.4]} 11... c5 {[%clk 0:02:48.8]} 12. Qb3 {[%clk 0:02:36]} 12...
Qc7 {[%clk 0:02:31.3]} 13. dxc5 {[%clk 0:02:12.6]} 13... bxc5 {[%clk 0:02:30]}
14. Qa3 {[%clk 0:02:13.1]} 14... Nbd7 {[%clk 0:02:25]} 15. Nb3 {[%clk
0:02:13.1]} 15... Rfc8 {[%clk 0:02:13.2]} 16. Na5 {[%clk 0:02:02.8]} 16... Qb6
{[%clk 0:02:03.7]} 17. Rfd1 {[%clk 0:01:56.1]} 17... Rab8 {[%clk 0:01:56]} 18.
Nxb7 {[%clk 0:01:55.3]} 18... Rxb7 {[%clk 0:01:49.6]} 19. b3 {[%clk 0:01:55.3]}
19... Rbc7 {[%clk 0:01:33.9]} 20. e3 {[%clk 0:01:42.9]} 20... c4 {[%clk
0:01:06.2]} 21. Nd4 {[%clk 0:01:34.3]} 21... Ne5 {[%clk 0:01:00.2]} 22. bxc4
{[%clk 0:01:17.1]} 22... dxc4 {[%clk 0:01:01.1]} 23. Nf5 {[%clk 0:01:09.3]}
23... Rb8 {[%clk 0:00:36.9]} 24. Rd6 {[%clk 0:00:52.3]} 24... Qc5 {[%clk
0:00:17.2]} 25. Qxc5 {[%clk 0:00:34.4]} 25... Rxc5 {[%clk 0:00:18.1]} 26. Bf1
{[%clk 0:00:28]} 26... a5 {[%clk 0:00:14]} 27. Nd4 {[%clk 0:00:24.8]} 27... Ne4
{[%clk 0:00:12.6]} 28. Ra6 {[%clk 0:00:18.7]} 28... Nd3 {[%clk 0:00:12.6]} 29.
Rc2 {[%clk 0:00:17.1]} 29... Nb4 {[%clk 0:00:12.7]} 30. Rxc4 {[%clk 0:00:13]}
30... Nxa6 {[%clk 0:00:12.9]} 31. Ra4 {[%clk 0:00:11.7]} 31... Nc7 {[%clk
0:00:11.1]} 0-1

[Event "*** Titled Tuesday Blitz"]
[Site "Chess.com"]
[Date "2020.05.26"]
[Round "5"]
[White "ThePatrick27"]
[Black "Omk124"]
[Result "0-1"]
[WhiteElo "2559"]
[BlackElo "2418"]
[TimeControl "180+1"]
[EndTime "10:56:16 PDT"]
[Termination "Omk124 won by resignation"]

1. d4 {[%clk 0:03:00.9]} 1... Nf6 {[%clk 0:02:59.7]} 2. c4 {[%clk 0:03:00.2]}
2... g6 {[%clk 0:02:59.3]} 3. Nc3 {[%clk 0:02:59.2]} 3... d5 {[%clk 0:02:59.3]}
4. cxd5 {[%clk 0:03:00.1]} 4... Nxd5 {[%clk 0:03:00.2]} 5. e4 {[%clk 0:03:00.8]}
5... Nxc3 {[%clk 0:03:00.8]} 6. bxc3 {[%clk 0:03:01.7]} 6... Bg7 {[%clk
0:03:01.5]} 7. Be3 {[%clk 0:03:02.3]} 7... O-O {[%clk 0:03:02]} 8. Nf3 {[%clk
0:03:02.1]} 8... c5 {[%clk 0:03:01.2]} 9. Rc1 {[%clk 0:03:02.1]} 9... Bg4 {[%clk
0:02:59.2]} 10. Be2 {[%clk 0:02:58.9]} 10... Nd7 {[%clk 0:02:51.8]} 11. O-O
{[%clk 0:02:53]} 11... Rc8 {[%clk 0:02:50.8]} 12. h3 {[%clk 0:02:48.8]} 12...
Bxf3 {[%clk 0:02:50.1]} 13. Bxf3 {[%clk 0:02:49.7]} 13... Qa5 {[%clk 0:02:49.5]}
14. Qb3 {[%clk 0:02:40.1]} 14... b6 {[%clk 0:02:31.6]} 15. Bg4 {[%clk
0:02:32.6]} 15... Rfd8 {[%clk 0:02:30.7]} 16. e5 {[%clk 0:02:30.8]} 16... e6
{[%clk 0:02:29.3]} 17. Bg5 {[%clk 0:02:19.6]} 17... Re8 {[%clk 0:02:29.2]} 18.
Bf3 {[%clk 0:02:07.1]} 18... Rc7 {[%clk 0:02:23.5]} 19. Be4 {[%clk 0:01:27.9]}
19... Rec8 {[%clk 0:02:20.3]} 20. Be3 {[%clk 0:01:20.5]} 20... cxd4 {[%clk
0:02:07.3]} 21. Bxd4 {[%clk 0:01:21.4]} 21... Nxe5 {[%clk 0:02:05.8]} 22. Bxe5
{[%clk 0:01:19.1]} 22... Qxe5 {[%clk 0:02:02.2]} 23. Bf3 {[%clk 0:01:16.8]}
23... Rxc3 {[%clk 0:02:00.8]} 24. Rxc3 {[%clk 0:01:15.3]} 24... Qxc3 {[%clk
0:02:00.3]} 25. Qa4 {[%clk 0:01:15.4]} 25... Rc7 {[%clk 0:02:00]} 26. Rd1 {[%clk
0:01:14.7]} 26... Bf6 {[%clk 0:01:54.2]} 27. Qf4 {[%clk 0:01:05]} 27... Kg7
{[%clk 0:01:48.6]} 28. h4 {[%clk 0:01:03.8]} 28... h5 {[%clk 0:01:47.8]} 29. g3
{[%clk 0:00:53.4]} 29... Rc4 {[%clk 0:01:40.7]} 30. Be4 {[%clk 0:00:50.3]} 30...
Qb4 {[%clk 0:01:33.1]} 31. f3 {[%clk 0:00:47.9]} 31... Qc5+ {[%clk 0:01:28.7]}
32. Kh1 {[%clk 0:00:46.1]} 32... Qf2 {[%clk 0:01:24.8]} 33. Rd7 {[%clk
0:00:31.5]} 33... Qxa2 {[%clk 0:01:11.6]} 34. Rc7 {[%clk 0:00:26.2]} 34... Qa1+
{[%clk 0:00:50.5]} 35. Kg2 {[%clk 0:00:23.7]} 35... Qb2+ {[%clk 0:00:50.4]} 36.
Kh3 {[%clk 0:00:23.8]} 36... Qc3 {[%clk 0:00:46]} 37. Rxa7 {[%clk 0:00:19.2]}
37... Qe1 {[%clk 0:00:45.7]} 38. Kg2 {[%clk 0:00:15.5]} 38... Rd4 {[%clk
0:00:40]} 39. Ra2 {[%clk 0:00:15.7]} 39... e5 {[%clk 0:00:35]} 0-1

[Event "*** Titled Tuesday Blitz"]
[Site "Chess.com"]
[Date "2020.05.26"]
[Round "5"]
[White "Azeryahu"]
[Black "ChessicallyInclined"]
[Result "1-0"]
[WhiteElo "2767"]
[BlackElo "2525"]
[TimeControl "180+1"]
[EndTime "10:56:18 PDT"]
[Termination "Azeryahu won by resignation"]

1. Nf3 {[%clk 0:03:00.9]} 1... Nf6 {[%clk 0:02:59.8]} 2. g3 {[%clk 0:03:00.8]}
2... b6 {[%clk 0:02:59.6]} 3. Bg2 {[%clk 0:03:00]} 3... Bb7 {[%clk 0:03:00.2]}
4. O-O {[%clk 0:03:00.6]} 4... g6 {[%clk 0:03:00.7]} 5. d4 {[%clk 0:02:58.2]}
5... Bg7 {[%clk 0:03:01.2]} 6. c4 {[%clk 0:02:57.8]} 6... O-O {[%clk 0:02:57.6]}
7. Nc3 {[%clk 0:02:56]} 7... Ne4 {[%clk 0:02:57.6]} 8. Bd2 {[%clk 0:02:56]} 8...
Nxd2 {[%clk 0:02:56.5]} 9. Qxd2 {[%clk 0:02:56.1]} 9... c5 {[%clk 0:02:53.5]}
10. d5 {[%clk 0:02:54]} 10... d6 {[%clk 0:02:52.6]} 11. h4 {[%clk 0:02:46.7]}
11... h5 {[%clk 0:02:47.8]} 12. Bh3 {[%clk 0:02:26.6]} 12... Bc8 {[%clk
0:02:43.8]} 13. Bxc8 {[%clk 0:02:26.6]} 13... Qxc8 {[%clk 0:02:40]} 14. Kg2
{[%clk 0:02:27.5]} 14... Nd7 {[%clk 0:02:38.3]} 15. a4 {[%clk 0:02:20.7]} 15...
Nf6 {[%clk 0:02:03.4]} 16. Ng5 {[%clk 0:02:19.5]} 16... Ng4 {[%clk 0:01:59.6]}
17. b3 {[%clk 0:02:06]} 17... a6 {[%clk 0:01:32.1]} 18. Ra2 {[%clk 0:02:04.9]}
18... Qd7 {[%clk 0:01:30.1]} 19. f3 {[%clk 0:01:59.8]} 19... Ne5 {[%clk
0:01:25.1]} 20. Qc2 {[%clk 0:01:56.4]} 20... Rab8 {[%clk 0:01:08.4]} 21. Rh1
{[%clk 0:01:46.9]} 21... Bh6 {[%clk 0:01:04.1]} 22. Nh3 {[%clk 0:01:35]} 22...
Kg7 {[%clk 0:00:55.6]} 23. Nf2 {[%clk 0:01:33.3]} 23... f5 {[%clk 0:00:43.1]}
24. f4 {[%clk 0:01:30]} 24... Ng4 {[%clk 0:00:39.4]} 25. Nxg4 {[%clk 0:01:30]}
25... hxg4 {[%clk 0:00:39.8]} 26. e4 {[%clk 0:01:27.8]} 26... e6 {[%clk
0:00:36.9]} 27. Qd3 {[%clk 0:01:23.7]} 27... Rbe8 {[%clk 0:00:35.9]} 28. Re2
{[%clk 0:01:22.4]} 28... e5 {[%clk 0:00:34]} 29. fxe5 {[%clk 0:01:14.4]} 29...
Rxe5 {[%clk 0:00:33.6]} 30. exf5 {[%clk 0:01:12.1]} 30... Rxe2+ {[%clk
0:00:31.8]} 31. Qxe2 {[%clk 0:01:08.1]} 31... Qxf5 {[%clk 0:00:22.9]} 32. Rf1
{[%clk 0:00:57.6]} 32... Qxf1+ {[%clk 0:00:18.7]} 33. Qxf1 {[%clk 0:00:58.5]}
33... Rxf1 {[%clk 0:00:17.4]} 34. Kxf1 {[%clk 0:00:59.4]} 34... Kf6 {[%clk
0:00:17.8]} 35. Ke2 {[%clk 0:00:59.1]} 35... Ke5 {[%clk 0:00:17.9]} 36. Kd3
{[%clk 0:00:59.5]} 36... Bg7 {[%clk 0:00:14.3]} 37. Ne4 {[%clk 0:00:58.9]} 37...
Bf8 {[%clk 0:00:14.7]} 38. Nf2 {[%clk 0:00:57.7]} 38... Kf5 {[%clk 0:00:14.7]}
39. Nd1 {[%clk 0:00:58.3]} 39... Bh6 {[%clk 0:00:11.9]} 40. Nc3 {[%clk 0:00:58]}
40... Ke5 {[%clk 0:00:10.8]} 41. Ne4 {[%clk 0:00:56.5]} 41... b5 {[%clk
0:00:09.5]} 42. cxb5 {[%clk 0:00:54]} 42... axb5 {[%clk 0:00:09.2]} 43. axb5
{[%clk 0:00:51]} 43... Kxd5 {[%clk 0:00:09.4]} 44. Nf6+ {[%clk 0:00:50.2]} 44...
Ke6 {[%clk 0:00:09.6]} 45. b6 {[%clk 0:00:43.7]} 45... Kxf6 {[%clk 0:00:04.1]}
46. b7 {[%clk 0:00:43.5]} 1-0

[Event "*** Titled Tuesday Blitz"]
[Site "Chess.com"]
[Date "2020.05.26"]
[Round "5"]
[White "fabianvivasz"]
[Black "Sadykov_Ramil"]
[Result "0-1"]
[WhiteElo "2290"]
[BlackElo "2494"]
[TimeControl "180+1"]
[EndTime "10:56:18 PDT"]
[Termination "Sadykov_Ramil won on time"]

1. e4 {[%clk 0:03:00.9]} 1... c5 {[%clk 0:02:43.5]} 2. Nf3 {[%clk 0:02:59.4]}
2... Nc6 {[%clk 0:02:43]} 3. d4 {[%clk 0:02:58.6]} 3... cxd4 {[%clk 0:02:43.9]}
4. Nxd4 {[%clk 0:02:59.2]} 4... e6 {[%clk 0:02:44.1]} 5. Nc3 {[%clk 0:02:58.8]}
5... d6 {[%clk 0:02:44]} 6. Be3 {[%clk 0:02:47]} 6... Nf6 {[%clk 0:02:43.4]} 7.
h3 {[%clk 0:02:15]} 7... Be7 {[%clk 0:02:36.9]} 8. g4 {[%clk 0:02:12.3]} 8... h6
{[%clk 0:02:08.6]} 9. Qd2 {[%clk 0:02:06]} 9... Nxd4 {[%clk 0:01:37.6]} 10. Bxd4
{[%clk 0:01:59]} 10... a6 {[%clk 0:01:37.1]} 11. Bg2 {[%clk 0:01:46.3]} 11... e5
{[%clk 0:01:25.1]} 12. Be3 {[%clk 0:01:43.7]} 12... Be6 {[%clk 0:01:23.5]} 13.
O-O-O {[%clk 0:01:35.6]} 13... Rc8 {[%clk 0:01:15.2]} 14. f4 {[%clk 0:01:22.6]}
14... exf4 {[%clk 0:00:41.8]} 15. Bxf4 {[%clk 0:01:15.2]} 15... Nd7 {[%clk
0:00:29]} 16. Bxd6 {[%clk 0:00:36]} 16... Bg5 {[%clk 0:00:28.6]} 17. Bf4 {[%clk
0:00:33]} 17... Bxf4 {[%clk 0:00:27.5]} 18. Qxf4 {[%clk 0:00:33.9]} 18... Rxc3
{[%clk 0:00:28]} 19. bxc3 {[%clk 0:00:33]} 19... Qa5 {[%clk 0:00:28]} 20. Rd3
{[%clk 0:00:23.8]} 20... O-O {[%clk 0:00:20.5]} 21. e5 {[%clk 0:00:09.3]} 21...
Nxe5 {[%clk 0:00:18.6]} 22. Rg3 {[%clk 0:00:04.1]} 22... Nc4 {[%clk 0:00:09.5]}
23. Be4 {[%clk 0:00:03.1]} 23... Rd8 {[%clk 0:00:03.1]} 0-1

[Event "*** Titled Tuesday Blitz"]
[Site "Chess.com"]
[Date "2020.05.26"]
[Round "5"]
[White "Gerodot71"]
[Black "BJthechessgod"]
[Result "1-0"]
[WhiteElo "2397"]
[BlackElo "2121"]
[TimeControl "180+1"]
[EndTime "10:56:19 PDT"]
[Termination "Gerodot71 won on time"]

1. d4 {[%clk 0:03:00.9]} 1... Nf6 {[%clk 0:02:58.3]} 2. c4 {[%clk 0:03:00.8]}
2... e6 {[%clk 0:02:58.3]} 3. Nf3 {[%clk 0:03:00.2]} 3... b6 {[%clk 0:02:58.6]}
4. a3 {[%clk 0:02:59.2]} 4... Bb7 {[%clk 0:02:58.8]} 5. Nc3 {[%clk 0:02:58.7]}
5... Be7 {[%clk 0:02:59.4]} 6. d5 {[%clk 0:02:58.4]} 6... O-O {[%clk 0:02:50.9]}
7. e4 {[%clk 0:02:57.9]} 7... d6 {[%clk 0:02:51.1]} 8. Be2 {[%clk 0:02:54.6]}
8... e5 {[%clk 0:02:50.8]} 9. O-O {[%clk 0:02:54.3]} 9... Nbd7 {[%clk
0:02:48.9]} 10. b4 {[%clk 0:02:52.5]} 10... a5 {[%clk 0:02:49.2]} 11. Be3 {[%clk
0:02:42.9]} 11... Ng4 {[%clk 0:02:37]} 12. h3 {[%clk 0:02:30.1]} 12... Nxe3
{[%clk 0:02:36.5]} 13. fxe3 {[%clk 0:02:30.7]} 13... axb4 {[%clk 0:02:14.1]} 14.
axb4 {[%clk 0:02:29]} 14... Bf6 {[%clk 0:01:57.4]} 15. Qc2 {[%clk 0:02:26.6]}
15... Re8 {[%clk 0:01:41.7]} 16. Nd2 {[%clk 0:02:23.5]} 16... Qe7 {[%clk
0:01:41.3]} 17. Nb3 {[%clk 0:02:18.4]} 17... Bg5 {[%clk 0:01:15.3]} 18. Qd3
{[%clk 0:01:50.8]} 18... Rxa1 {[%clk 0:01:07.8]} 19. Rxa1 {[%clk 0:01:49.2]}
19... Ra8 {[%clk 0:01:08.4]} 20. Rxa8+ {[%clk 0:01:45.2]} 20... Bxa8 {[%clk
0:01:09.3]} 21. Nb5 {[%clk 0:01:45.2]} 21... Qd8 {[%clk 0:01:08.9]} 22. Kf2
{[%clk 0:01:41.8]} 22... Bh4+ {[%clk 0:00:45.7]} 23. Kf1 {[%clk 0:01:39.5]}
23... Qg5 {[%clk 0:00:36]} 24. Bf3 {[%clk 0:01:16.4]} 24... Qg3 {[%clk
0:00:34.5]} 25. Qd2 {[%clk 0:01:16.8]} 25... Bd8 {[%clk 0:00:22.4]} 26. Ke2
{[%clk 0:01:13]} 26... f5 {[%clk 0:00:16.9]} 27. exf5 {[%clk 0:01:09.7]} 27...
Nf6 {[%clk 0:00:16.7]} 28. e4 {[%clk 0:01:01.6]} 28... Qh4 {[%clk 0:00:10]} 29.
Qe3 {[%clk 0:00:57]} 29... Qg3 {[%clk 0:00:04.8]} 30. Kd3 {[%clk 0:00:51.7]}
30... Qh2 {[%clk 0:00:04.2]} 31. c5 {[%clk 0:00:47.3]} 31... Qh1 {[%clk
0:00:03.6]} 32. Kc2 {[%clk 0:00:38.3]} 32... bxc5 {[%clk 0:00:03.1]} 33. bxc5
{[%clk 0:00:38.3]} 33... Qf1 {[%clk 0:00:03.1]} 34. Nc3 {[%clk 0:00:35.3]} 34...
c6 {[%clk 0:00:01.5]} 35. cxd6 {[%clk 0:00:34.6]} 35... cxd5 {[%clk 0:00:01.9]}
36. exd5 {[%clk 0:00:31.4]} 36... Qa6 {[%clk 0:00:01.8]} 37. Qxe5 {[%clk
0:00:29.6]} 37... Nd7 {[%clk 0:00:01.5]} 38. Qe6+ {[%clk 0:00:29.3]} 38... Kf8
{[%clk 0:00:01.4]} 39. Qxd7 {[%clk 0:00:29.1]} 1-0

[Event "*** Titled Tuesday Blitz"]
[Site "Chess.com"]
[Date "2020.05.26"]
[Round "5"]
[White "CarlosAlbornoz"]
[Black "sergiochess83"]
[Result "1-0"]
[WhiteElo "2731"]
[BlackElo "2846"]
[TimeControl "180+1"]
[EndTime "10:56:21 PDT"]
[Termination "CarlosAlbornoz won on time"]

1. e4 {[%clk 0:03:00.9]} 1... c6 {[%clk 0:02:59.2]} 2. d4 {[%clk 0:03:00.8]}
2... d5 {[%clk 0:02:59.4]} 3. e5 {[%clk 0:03:01.2]} 3... Bf5 {[%clk 0:02:59.4]}
4. Nf3 {[%clk 0:03:01.2]} 4... e6 {[%clk 0:03:00]} 5. Be2 {[%clk 0:03:01.3]}
5... Ne7 {[%clk 0:03:00.6]} 6. O-O {[%clk 0:03:01.4]} 6... c5 {[%clk 0:03:00.7]}
7. c4 {[%clk 0:02:59.4]} 7... Nbc6 {[%clk 0:02:57.1]} 8. Nc3 {[%clk 0:02:55.3]}
8... a6 {[%clk 0:02:35.7]} 9. dxc5 {[%clk 0:02:50.2]} 9... d4 {[%clk 0:02:32.9]}
10. Na4 {[%clk 0:02:35.6]} 10... d3 {[%clk 0:02:30.7]} 11. Nb6 {[%clk
0:02:35.7]} 11... dxe2 {[%clk 0:02:29.3]} 12. Qxe2 {[%clk 0:02:36.6]} 12... Bd3
{[%clk 0:02:25.3]} 13. Qe1 {[%clk 0:02:35.4]} 13... Bxf1 {[%clk 0:02:14.9]} 14.
Qxf1 {[%clk 0:02:34.1]} 14... Ng6 {[%clk 0:01:50.4]} 15. Bg5 {[%clk 0:02:29.9]}
15... Qb8 {[%clk 0:01:37.5]} 16. Rd1 {[%clk 0:02:18.8]} 16... Bxc5 {[%clk
0:01:33.2]} 17. Nxa8 {[%clk 0:02:02.3]} 17... Qxa8 {[%clk 0:01:32.3]} 18. h4
{[%clk 0:01:59.4]} 18... h6 {[%clk 0:01:28.9]} 19. h5 {[%clk 0:01:57.4]} 19...
Ngxe5 {[%clk 0:01:13.6]} 20. Nxe5 {[%clk 0:01:56.2]} 20... hxg5 {[%clk
0:01:08.3]} 21. Nd7 {[%clk 0:01:27.4]} 21... Bd4 {[%clk 0:01:03.4]} 22. b4
{[%clk 0:01:25.6]} 22... Kxd7 {[%clk 0:00:57.2]} 23. b5 {[%clk 0:01:25.8]} 23...
e5 {[%clk 0:00:51.4]} 24. bxc6+ {[%clk 0:01:25.3]} 24... bxc6 {[%clk 0:00:48]}
25. Qd3 {[%clk 0:01:25.2]} 25... Kc7 {[%clk 0:00:22.5]} 26. Qf5 {[%clk
0:01:24.2]} 26... Qd8 {[%clk 0:00:17]} 27. Qxf7+ {[%clk 0:01:23.2]} 27... Qd7
{[%clk 0:00:17.3]} 28. Qf3 {[%clk 0:01:23]} 28... Rh6 {[%clk 0:00:15.1]} 29. Rb1
{[%clk 0:01:18.7]} 29... Rf6 {[%clk 0:00:14.5]} 30. Qb3 {[%clk 0:01:18.8]} 30...
Qc8 {[%clk 0:00:06.8]} 31. Qa3 {[%clk 0:01:04.8]} 31... Kd7 {[%clk 0:00:04.6]}
32. Qh3+ {[%clk 0:01:03.6]} 32... Kd8 {[%clk 0:00:04.3]} 33. Qa3 {[%clk
0:01:01.4]} 33... Ke8 {[%clk 0:00:03.3]} 34. Kh1 {[%clk 0:00:53]} 34... Rxf2
{[%clk 0:00:03.2]} 35. Qd6 {[%clk 0:00:51.3]} 35... Rf6 {[%clk 0:00:03.3]} 36.
Qa3 {[%clk 0:00:46.5]} 36... g4 {[%clk 0:00:03.6]} 37. Qg3 {[%clk 0:00:39.4]}
37... Rh6 {[%clk 0:00:01.3]} 38. Qh4 {[%clk 0:00:39.2]} 1-0

[Event "*** Titled Tuesday Blitz"]
[Site "Chess.com"]
[Date "2020.05.26"]
[Round "5"]
[White "Turquoise_2701"]
[Black "CookiesAndIceCream"]
[Result "1-0"]
[WhiteElo "2169"]
[BlackElo "2311"]
[TimeControl "180+1"]
[EndTime "10:56:21 PDT"]
[Termination "Turquoise_2701 won on time"]

1. Nf3 {[%clk 0:03:00.9]} 1... d5 {[%clk 0:02:59.1]} 2. c4 {[%clk 0:03:00.8]}
2... d4 {[%clk 0:02:58.2]} 3. b4 {[%clk 0:03:00.2]} 3... g5 {[%clk 0:02:55.4]}
4. Bb2 {[%clk 0:02:55.5]} 4... Bg7 {[%clk 0:02:53]} 5. Nxg5 {[%clk 0:02:55.4]}
5... e5 {[%clk 0:02:51.2]} 6. h4 {[%clk 0:02:35.3]} 6... Ne7 {[%clk 0:02:26.7]}
7. d3 {[%clk 0:02:24.6]} 7... c5 {[%clk 0:02:14]} 8. bxc5 {[%clk 0:02:22]} 8...
Na6 {[%clk 0:02:07.8]} 9. Ne4 {[%clk 0:02:09.9]} 9... Nxc5 {[%clk 0:01:54.3]}
10. Nxc5 {[%clk 0:02:02.1]} 10... Qa5+ {[%clk 0:01:53.1]} 11. Qd2 {[%clk
0:01:48]} 11... Qxc5 {[%clk 0:01:52.6]} 12. Ba3 {[%clk 0:01:48.6]} 12... Qc7
{[%clk 0:01:41.1]} 13. h5 {[%clk 0:01:48.1]} 13... h6 {[%clk 0:01:16]} 14. g3
{[%clk 0:01:42.3]} 14... O-O {[%clk 0:01:14.2]} 15. Bg2 {[%clk 0:01:42.5]} 15...
Re8 {[%clk 0:01:04.5]} 16. Qc1 {[%clk 0:01:13.9]} 16... Bg4 {[%clk 0:00:33.4]}
17. Nd2 {[%clk 0:01:06.7]} 17... Nc6 {[%clk 0:00:31.5]} 18. Ne4 {[%clk
0:00:57.8]} 18... Rad8 {[%clk 0:00:28.8]} 19. Rh4 {[%clk 0:00:39.5]} 19... f5
{[%clk 0:00:25.9]} 20. Nc5 {[%clk 0:00:31.9]} 20... e4 {[%clk 0:00:19.2]} 21.
dxe4 {[%clk 0:00:26]} 21... d3 {[%clk 0:00:19.1]} 22. Nxd3 {[%clk 0:00:18.8]}
22... Qa5+ {[%clk 0:00:17.9]} 23. Kf1 {[%clk 0:00:15.5]} 23... Bxa1 {[%clk
0:00:07.6]} 24. Qxa1 {[%clk 0:00:15.6]} 24... Qxa3 {[%clk 0:00:08]} 25. f3
{[%clk 0:00:16.2]} 25... Qe7 {[%clk 0:00:06.7]} 26. fxg4 {[%clk 0:00:15.8]}
26... Nd4 {[%clk 0:00:06.8]} 27. gxf5 {[%clk 0:00:14.8]} 27... Kh7 {[%clk
0:00:04.7]} 28. e5 {[%clk 0:00:12.5]} 28... Qg5 {[%clk 0:00:03.4]} 29. Be4
{[%clk 0:00:11.4]} 29... Qe3 {[%clk 0:00:02.5]} 30. f6+ {[%clk 0:00:11.7]} 30...
Kh8 {[%clk 0:00:02.5]} 31. Qc1 {[%clk 0:00:11.8]} 31... Qxe2+ {[%clk 0:00:02.2]}
32. Kg1 {[%clk 0:00:11.6]} 1-0

[Event "*** Titled Tuesday Blitz"]
[Site "Chess.com"]
[Date "2020.05.26"]
[Round "5"]
[White "FairChess_on_YouTube"]
[Black "Kostya_Nikologorskiy"]
[Result "1-0"]
[WhiteElo "3023"]
[BlackElo "2714"]
[TimeControl "180+1"]
[EndTime "10:56:23 PDT"]
[Termination "FairChess_on_YouTube won by resignation"]

1. e4 {[%clk 0:03:00.9]} 1... e6 {[%clk 0:03:00]} 2. d4 {[%clk 0:03:00.3]} 2...
d5 {[%clk 0:03:00.6]} 3. Nc3 {[%clk 0:03:00.5]} 3... Bb4 {[%clk 0:03:00.2]} 4.
Qd3 {[%clk 0:03:00.2]} 4... dxe4 {[%clk 0:02:52.1]} 5. Qxe4 {[%clk 0:03:00.1]}
5... Nf6 {[%clk 0:02:51.9]} 6. Qh4 {[%clk 0:03:00]} 6... c5 {[%clk 0:02:47.6]}
7. dxc5 {[%clk 0:02:58.4]} 7... Qa5 {[%clk 0:02:38.8]} 8. Bd2 {[%clk 0:02:56]}
8... Qxc5 {[%clk 0:02:28.5]} 9. O-O-O {[%clk 0:02:45.7]} 9... O-O {[%clk
0:02:26.7]} 10. Bd3 {[%clk 0:02:40.2]} 10... e5 {[%clk 0:01:31.4]} 11. Nf3
{[%clk 0:02:31.5]} 11... Nbd7 {[%clk 0:01:23.1]} 12. Rhe1 {[%clk 0:02:24.9]}
12... b6 {[%clk 0:01:11.9]} 13. Ne4 {[%clk 0:02:14.4]} 13... Bxd2+ {[%clk
0:01:11]} 14. Rxd2 {[%clk 0:02:13.4]} 14... Qc7 {[%clk 0:00:57.8]} 15. Nxe5
{[%clk 0:02:08.4]} 15... h6 {[%clk 0:00:44.4]} 16. Nxd7 {[%clk 0:01:43.8]} 16...
Nxd7 {[%clk 0:00:45.3]} 17. Qe7 {[%clk 0:01:40.1]} 17... Qe5 {[%clk 0:00:42.9]}
18. Nd6 {[%clk 0:01:33.2]} 18... Qxe7 {[%clk 0:00:33.4]} 19. Rxe7 {[%clk
0:01:34.1]} 19... Nc5 {[%clk 0:00:33]} 20. Bc4 {[%clk 0:01:27.2]} 20... Be6
{[%clk 0:00:27.4]} 21. b4 {[%clk 0:01:21]} 21... Bxc4 {[%clk 0:00:26.1]} 22.
bxc5 {[%clk 0:01:20.6]} 22... Bxa2 {[%clk 0:00:24.6]} 23. c6 {[%clk 0:01:19.6]}
23... Be6 {[%clk 0:00:23.3]} 24. c7 {[%clk 0:01:18.9]} 24... a5 {[%clk
0:00:20.3]} 25. Kb2 {[%clk 0:01:12]} 25... a4 {[%clk 0:00:20.4]} 26. Ka3 {[%clk
0:01:12]} 26... g6 {[%clk 0:00:20.2]} 27. c4 {[%clk 0:01:07.2]} 27... Kg7 {[%clk
0:00:20.2]} 28. Ne4 {[%clk 0:00:40]} 28... Bxc4 {[%clk 0:00:20.1]} 29. Rdd7
{[%clk 0:00:33.7]} 29... b5 {[%clk 0:00:20]} 30. Nd6 {[%clk 0:00:34]} 30... b4+
{[%clk 0:00:14]} 31. Kxb4 {[%clk 0:00:33.2]} 31... a3 {[%clk 0:00:14.5]} 32.
Nxc4 {[%clk 0:00:27]} 32... a2 {[%clk 0:00:14.6]} 33. Re1 {[%clk 0:00:23.4]}
33... a1=Q {[%clk 0:00:12.5]} 34. Rxa1 {[%clk 0:00:23.8]} 34... Rxa1 {[%clk
0:00:13.2]} 35. Rd8 {[%clk 0:00:18.1]} 35... Ra8 {[%clk 0:00:09.8]} 36. Rxa8
{[%clk 0:00:17.8]} 36... Rxa8 {[%clk 0:00:09.5]} 37. Nb6 {[%clk 0:00:18.3]}
37... Re8 {[%clk 0:00:09.1]} 1-0